fUSD/lending_fUSD_20250213
["ID","MTS","AMOUNT","RATE_DAILY","PERIOD"]
[352999400,1739482241509,-500.0,0.00013698,2]
[352999402,1739482241519,-755.41,0.00013698,2]
[352999403,1739482241528,-1024.19,0.00013698,2]
[352999405,1739482241538,-1309.54,0.00013698,2]
[352999407,1739482241547,-796.63,0.00013698,2]
[352999409,1739482241556,-1975.85,0.00013698,2]
[352999411,1739482241566,-961.84,0.00013698,2]
[352999413,1739482241575,-794.18,0.00013698,2]
[352999415,1739482241584,-812.1,0.00013698,2]
[352999416,1739482241594,-516.09,0.00013698,2]
[352999417,1739482241603,-1293.95,0.00013698,2]
[352999418,1739482241612,-1260.74,0.00013698,2]
[352999419,1739482241622,-666.21,0.00013698,2]
[352999420,1739482241631,-1781.57,0.00013698,2]
[352999421,1739482241641,-2248.953394,0.00013698,2]
[352999422,1739482241650,-849.77,0.00013698,2]
[352999423,1739482241659,-1684.16,0.00013698,2]
[352999424,1739482241668,-1794.32,0.00013698,2]
[352999425,1739482241677,-1085.66,0.00013698,2]
[352999426,1739482241687,-944.73,0.00013698,2]
[352999429,1739482241696,-156.888053,0.00013698,2]
[352999430,1739482241706,-1671.41,0.00013698,2]
[352999432,1739482241715,-717.63,0.00013698,2]
[352999434,1739482241725,-779.19,0.00013698,2]
[352999436,1739482241734,-1402.77,0.00013698,2]
[352999439,1739482241744,-110.18825907,0.00013698,2]
[352999441,1739482241759,-389.81174093,0.00013698,2]
[352999443,1739482241768,-500.0,0.00013698,2]
[352999445,1739482241777,-500.0,0.00013698,2]
[352999447,1739482241787,-1328.54,0.00013698,2]
[352999449,1739482241796,-500.0,0.00013698,2]
[352999451,1739482241805,-1227.44,0.00013698,2]
[352999453,1739482241815,-500.0,0.00013698,2]
[352999455,1739482241829,-500.0,0.00013698,2]
[352999457,1739482241840,-305.9400657,0.00013698,2]
[352999458,1739482241870,-161.31079712,0.00013598,2]
[352999459,1739482241880,-194.0599343,0.00013698,2]
[352999460,1739482241889,-1807.31,0.00013698,2]
[352999461,1739482241898,-964.9,0.00013698,2]
[352999462,1739482241909,-237.87723681,0.00013698,2]
[352999463,1739482241920,-500.89672797,0.00013698,2]
[352999464,1739482241940,-128.38603522,0.00013698,2]
[352999465,1739482241951,-176.71354113,0.00013698,2]
[352999466,1739482241964,-456.47645887,0.00013698,2]
[352999467,1739482241974,-689.37,0.00013698,2]
[352999468,1739482241983,-706.19,0.00013698,2]
[352999469,1739482241994,-1136.93,0.00013698,2]
[352999470,1739482242005,-500.0,0.00013698,2]
[352999471,1739482242016,-500.0,0.00013698,2]
[352999472,1739482242025,-842.93354113,0.00013698,2]
[352999473,1739482242037,-315.289,0.00013698,2]
[352999474,1739482242047,-270.38055587,0.00013698,2]
[352999475,1739482242056,-99.91144413,0.00013698,2]
[352999531,1739482243481,-519.89726226,0.00012766,2]
[352999604,1739482246250,-8309.03551398,0.00012766,2]
[352999605,1739482246511,-19203.51520002,0.00012766,2]
[352999606,1739482246522,-8415.70202374,0.00012766,2]
[352999607,1739482246533,-161.3107971,0.00013626,2]
[352999608,1739482246543,-752.09855587,0.00013698,2]
[352999610,1739482246552,-500.0,0.00013698,2]
[352999611,1739482246562,-685.48,0.00013698,2]
[352999612,1739482246571,-724.58022329,0.00013698,2]
[352999613,1739482333088,7567.5127,8.836e-05,2]
[352999614,1739482399462,2324.7787,8.836e-05,2]
[352999615,1739482574043,32868.0,0.0001,2]
[352999616,1739482697643,-5554.0,0.000104,3]
[352999617,1739482697669,-150.0,0.000106,2]
[352999618,1739482697696,-161.10100952,0.000108,2]
[352999619,1739482697721,-150.0,0.00010828,2]
[352999620,1739482697747,-3984.89899048,0.000109,5]
[352999621,1739482938709,1108.0,8.973e-05,2]
[352999622,1739483050408,1083.31,9.096e-05,2]
[352999623,1739483168745,7775.2242,8.836e-05,2]
[352999630,1739483413737,-192.38,0.00010137,2]
[352999631,1739483413764,-150.0,0.00010468,2]
[352999632,1739483413791,-9657.62,0.0001073,2]
[352999636,1739483431439,-14242.38,0.0001073,2]
[352999637,1739483431448,-171.7,0.00010744,2]
[352999638,1739483431458,-161.10100952,0.00010778,2]
[352999639,1739483431467,-1570.0,0.000108,5]
[352999640,1739483431477,-1617.9,0.00010878,2]
[352999641,1739483431487,-1290.01,0.00010912,2]
[352999642,1739483431497,-526.17,0.00010995,2]
[352999643,1739483431507,-5179.19327415,0.00011,2]
[352999644,1739483431519,-1447.42,0.00011013,2]
[352999645,1739483431529,-150.0,0.00011022,2]
[352999646,1739483431538,-150.0,0.00011022,2]
[352999647,1739483431548,-150.0,0.00011022,2]
[352999648,1739483431558,-150.0,0.00011022,2]
[352999649,1739483431568,-1000.0,0.00011046,2]
[352999650,1739483431578,-166.59,0.00011071,2]
[352999651,1739483431588,-150.0,0.00011116,2]
[352999652,1739483431598,-150.0,0.00011123,2]
[352999653,1739483431608,-2525.35,0.00011142,2]
[352999654,1739483431618,-150.0,0.00011151,2]
[352999655,1739483431629,-700.0,0.000112,4]
[352999656,1739483431639,-150.0,0.0001121,2]
[352999657,1739483431649,-2000.0,0.00011224,2]
[352999658,1739483431660,-1400.0,0.000113,4]
[352999659,1739483431670,-150.0,0.00011305,2]
[352999660,1739483431679,-1083.31,0.00011359,2]
[352999661,1739483431689,-600.0,0.00011364,2]
[352999662,1739483431699,-500.0,0.00011364,2]
[352999663,1739483431709,-700.0,0.00011364,2]
[352999664,1739483431718,-150.0,0.00011399,2]
[352999665,1739483431728,-2200.0,0.000114,4]
[352999666,1739483431739,-150.0,0.0001143,2]
[352999667,1739483431750,-150.0,0.0001143,2]
[352999668,1739483431759,-150.0,0.00011493,2]
[352999669,1739483431773,-2900.0,0.000115,4]
[352999670,1739483431783,-150.0,0.00011587,2]
[352999671,1739483431794,-3700.0,0.000116,4]
[352999672,1739483431804,-178.26,0.00011623,2]
[352999673,1739483431814,-150.0,0.00011681,2]
[352999674,1739483431824,-700.0,0.000117,4]
[352999675,1739483431833,-150.0,0.00011776,2]
[352999676,1739483431843,-700.0,0.000118,4]
[352999677,1739483431853,-150.0,0.00011838,2]
[352999678,1739483431862,-150.0,0.0001187,2]
[352999679,1739483431871,-700.0,0.000119,4]
[352999680,1739483431880,-161.10100952,0.00011958,2]
[352999681,1739483431890,-150.0,0.00011964,2]
[352999682,1739483431899,-30000.0,0.00012,4]
[352999683,1739483431909,-150.0,0.00012058,2]
[352999684,1739483431919,-150.0,0.00012152,2]
[352999685,1739483431928,-158.92334666,0.00012163,2]
[352999686,1739483431937,-157.46067926,0.00012163,2]
[352999687,1739483431947,-11967.71627836,0.00012164,2]
[352999689,1739483431956,-325.91600817,0.00012164,2]
[352999690,1739483431966,-3188.60760662,0.00012164,2]
[352999691,1739483431975,-157.46067924,0.00012165,2]
[352999692,1739483431985,-11967.71627828,0.00012165,2]
[352999693,1739483431995,-3188.60760658,0.00012165,2]
[352999694,1739483432005,-11967.71627828,0.00012166,2]
[352999695,1739483432014,-3188.60760658,0.00012166,2]
[352999696,1739483432026,-158.92334666,0.00012166,2]
[352999697,1739483432035,-157.46067924,0.00012166,2]
[352999698,1739483432046,-11967.71627828,0.00012167,2]
[352999699,1739483432055,-584.18992708,0.00012167,2]
[352999700,1739483432068,-2604.4176795,0.00012167,2]
[352999701,1739483432078,-11967.71627828,0.00012168,2]
[352999702,1739483432088,-157.46067924,0.00012168,2]
[352999703,1739483432097,-3188.60760658,0.00012168,2]
[352999704,1739483432107,-11967.71627828,0.00012169,2]
[352999705,1739483432117,-3188.60760658,0.00012169,2]
[352999706,1739483432127,-158.92334666,0.0001217,2]
[352999707,1739483432138,-157.46067924,0.0001217,2]
[352999708,1739483432148,-11967.71627828,0.0001217,2]
[352999709,1739483432158,-3188.60760658,0.0001217,2]
[352999710,1739483432168,-11967.71627828,0.00012171,2]
[352999711,1739483432178,-3188.60760658,0.00012171,2]
[352999712,1739483432188,-157.46067924,0.00012171,2]
[352999713,1739483432199,-11967.71627828,0.00012172,2]
[352999714,1739483432208,-1818.53402808,0.00012172,2]
[352999715,1739483432356,-1370.0735785,0.00012172,2]
[352999716,1739483432366,-158.92334666,0.00012173,2]
[352999717,1739483432376,-6038.51580584,0.00012173,2]
[352999718,1739483432388,-387.0,0.00012173,2]
[352999719,1739483432502,-5542.20047244,0.00012173,2]
[352999720,1739483432513,-630.3537076,0.00012173,2]
[352999721,1739483432528,-157.46067924,0.00012173,2]
[352999722,1739483432538,-3188.60760658,0.00012173,2]
[352999723,1739483432548,-195.11849024,0.00012247,2]
[352999724,1739483432559,-150.0,0.00012247,2]
[352999725,1739483432568,-150.0,0.00012247,2]
[352999726,1739483432578,-500.0,0.00012263,2]
[352999727,1739483432589,-500.0,0.00012263,2]
[352999728,1739483432598,-500.0,0.00012263,2]
[352999729,1739483432608,-500.0,0.00012263,2]
[352999730,1739483432618,-500.0,0.00012263,2]
[352999731,1739483432627,-500.0,0.00012263,2]
[352999732,1739483432637,-395.42415129,0.00012263,2]
[352999733,1739483432648,-500.0,0.00012263,2]
[352999734,1739483432657,-500.0,0.00012263,2]
[352999735,1739483432667,-500.0,0.00012263,2]
[352999736,1739483432677,-500.0,0.00012263,2]
[352999737,1739483432687,-500.0,0.00012263,2]
[352999738,1739483432697,-500.0,0.00012263,2]
[352999739,1739483432707,-500.0,0.00012263,2]
[352999740,1739483432717,-500.0,0.00012263,2]
[352999741,1739483432728,-500.0,0.00012263,2]
[352999742,1739483432740,-500.0,0.00012263,2]
[352999743,1739483432750,-500.0,0.00012263,2]
[352999744,1739483432760,-500.0,0.00012263,2]
[352999745,1739483432772,-500.0,0.00012263,2]
[352999746,1739483432784,-500.0,0.00012263,2]
[352999747,1739483432795,-500.0,0.00012263,2]
[352999748,1739483432806,-500.0,0.00012263,2]
[352999749,1739483432815,-500.0,0.00012263,2]
[352999750,1739483432826,-500.0,0.00012263,2]
[352999751,1739483432836,-500.0,0.00012263,2]
[352999752,1739483432846,-441.22983822,0.00012263,2]
[352999753,1739483432855,-500.0,0.00012263,2]
[352999754,1739483432865,-500.0,0.00012263,2]
[352999755,1739483432875,-500.0,0.00012263,2]
[352999756,1739483432885,-3724.93,0.00012263,2]
[352999757,1739483432895,-300.0,0.00012263,2]
[352999758,1739483432904,-573559.46563458,0.00012264,3]
[352999759,1739483433336,-340.34,0.00012264,3]
[352999765,1739483437524,-173.46997114,0.00012173,2]
[352999766,1739483437534,-206.18182586,0.00012264,3]
[352999948,1739483439479,-3989.84079367,0.00012264,3]
[352999951,1739483439491,-968.23034162,0.00012264,3]
[352999953,1739483439503,-258.44987853,0.00012264,3]
[352999955,1739483439515,-670.53842167,0.00012264,3]
[352999957,1739483439527,-435.23505263,0.00012264,3]
[353000129,1739483441170,-1108.0,0.00012264,3]
[353000278,1739483442603,-546.15897064,0.00012173,2]
[353000280,1739483442613,-6225.55102936,0.00012264,3]
[353000293,1739483442726,-26712.55577004,0.00012264,3]
[353000508,1739483445487,-8453.91910931,0.00012264,3]
[353000516,1739483445553,-704.25600544,0.00012264,3]
[353000544,1739483445810,-11030.36,0.00012264,3]
[353000550,1739483445856,-1614.33836535,0.00012264,3]
[353001190,1739483453033,2049.5209,8.973e-05,2]
[353001887,1739483483028,17532.1285,8.836e-05,2]
[353001888,1739483534530,2000.0,8.836e-05,2]
[353001889,1739483534555,101768.4074,8.836e-05,2]
[353001890,1739483549846,500.0,8.973e-05,2]
[353001891,1739483552870,488.879,8.851e-05,2]
[353001892,1739483589514,1698.1318,8.699e-05,2]
[353001893,1739483798450,2274.1089,8.836e-05,2]
[353001904,1739484601606,3456.1223,8.973e-05,2]
[353001906,1739484631804,-168.2,0.00010137,2]
[353001907,1739484631814,-150.0,0.00010271,2]
[353001908,1739484631824,-150.0,0.00010533,2]
[353001909,1739484631834,-23.47,0.00010672,2]
[353001910,1739484631853,-166.41196351,0.00010672,2]
[353001911,1739484631862,-1175.73992947,0.00010672,2]
[353001912,1739484631871,-156.91,0.00010772,2]
[353001913,1739484631881,-2000.0,0.00010984,2]
[353001914,1739484631891,-250.0,0.00011006,2]
[353001915,1739484631900,-300.0,0.00011015,2]
[353001916,1739484631911,-10044.03078702,0.00011016,2]
[353001917,1739484631923,-1448.0466,0.00011016,2]
[353001918,1739484631978,-1307.35000001,0.00011016,2]
[353001919,1739484632088,-11100.57261297,0.00011016,2]
[353001920,1739484632098,-1000.0,0.00011144,2]
[353001921,1739484632107,-150.0,0.00011151,2]
[353001922,1739484632116,-39432.82,0.00011315,2]
[353001923,1739484632126,-600.0,0.00011364,2]
[353001924,1739484632135,-500.0,0.00011364,2]
[353001925,1739484632144,-600.0,0.00011364,2]
[353001926,1739484632154,-150.0,0.00011364,2]
[353001927,1739484632163,-1262.67,0.00011369,2]
[353001928,1739484632174,-166.67,0.00011408,2]
[353001929,1739484632183,-480.96,0.00011606,2]
[353001930,1739484632193,-1009.64,0.00011613,2]
[353001931,1739484632203,-150.0,0.00011891,2]
[353001932,1739484632212,-1969.58,0.00011892,2]
[353001933,1739484632222,-150.0,0.00011894,2]
[353001934,1739484632231,-400.07400017,0.00011947,2]
[353001935,1739484632241,-420.0,0.00012104,2]
[353001936,1739484632250,-155.84341852,0.00012163,2]
[353001937,1739484632260,-155.84341848,0.00012163,2]
[353001938,1739484632269,-155.84341848,0.00012163,2]
[353001939,1739484632279,-155.84341848,0.00012164,2]
[353001940,1739484632288,-155.84341848,0.00012164,2]
[353001941,1739484632297,-230.5141369,0.00012164,2]
[353001942,1739484632308,-775.77536361,0.00012164,2]
[353001943,1739484632317,-173.46997114,0.00012164,2]
[353001944,1739484632327,-155.84341848,0.00012164,2]
[353001945,1739484632336,-420.23580506,0.00012164,2]
[353001946,1739484632347,-439.94,0.00012247,2]
[353001947,1739484632356,-1313.52087338,0.00012262,3]
[353001948,1739484632366,-2077.662,0.00012262,2]
[353001949,1739484632376,-177.546,0.00012262,2]
[353001950,1739484632386,-88878.59354424,0.00012263,2]
[353001951,1739484632396,-176.93683368,0.00012263,2]
[353001952,1739484632406,-500.0,0.00012263,2]
[353001953,1739484632415,-500.0,0.00012263,2]
[353001954,1739484632424,-500.0,0.00012263,2]
[353001955,1739484632434,-500.0,0.00012263,2]
[353001956,1739484632444,-500.0,0.00012263,2]
[353001957,1739484632454,-500.0,0.00012263,2]
[353001958,1739484632463,-500.0,0.00012263,2]
[353001959,1739484632473,-398.11339699,0.00012263,2]
[353001960,1739484632483,-500.0,0.00012263,2]
[353001961,1739484632492,-500.0,0.00012263,2]
[353001962,1739484632502,-3569.72,0.00012263,2]
[353001963,1739484632512,-2996.87475,0.00012263,2]
[353001964,1739484632521,-270.61866086,0.00012263,3]
[353001965,1739484632530,-570516.42748251,0.00012264,3]
[353001966,1739484632542,-96279.37367014,0.00012264,3]
[353001967,1739484632556,-85833.2838837,0.00012264,3]
[353002027,1739484637847,-34024.86813457,0.00012263,3]
[353002030,1739484637870,-966.00000034,0.00012263,3]
[353002032,1739484637880,-1145.79916024,0.00012263,3]
[353002034,1739484637891,-10205.25570137,0.00012263,3]
[353002207,1739484639691,-500.0,0.00012263,2]
[353002209,1739484639702,-500.0,0.00012263,2]
[353002211,1739484639713,-476.76714081,0.00012263,2]
[353002213,1739484639723,-430.45019904,0.00012263,3]
[353002229,1739484639873,-5595.77741335,0.00012263,3]
[353002231,1739484639885,-512.036,0.00012263,3]
[353002247,1739484640027,-343.42447415,0.00012263,3]
[353002265,1739484640198,-27310.0104881,0.00012263,3]
[353002554,1739484642891,-483.9004615,0.00012263,3]
[353002813,1739484645682,-313.06330969,0.00012263,3]
[353002822,1739484645769,-152897.85133328,0.00012263,3]
[353002825,1739484645781,-792.6859962,0.00012263,3]
[353002827,1739484645794,-2385.91333527,0.00012263,3]
[353002877,1739484646172,-4086.03190444,0.00012263,3]
[353002879,1739484646184,-5132.2190332,0.00012263,3]
[353002881,1739484646196,-2112.7,0.00012263,3]
[353002883,1739484646207,-777.741585,0.00012263,3]
[353002886,1739484646219,-3759.5482,0.00012263,3]
[353002888,1739484646234,-5062.64641841,0.00012263,3]
[353002891,1739484646246,-1200.0,0.00012263,3]
[353002893,1739484646258,-501000.46255451,0.00012263,3]
[353002895,1739484646267,-8246.9323477,0.00012264,2]
[353002897,1739484646277,-103539.948869,0.00012264,5]
[353002899,1739484646288,-1346.60363188,0.00012264,5]
[353003178,1739484691797,24593.8777,8.973e-05,2]
[353003179,1739484727550,703.349,8.973e-05,2]
[353003180,1739484749265,2500.0,8.851e-05,2]
[353003181,1739484915506,1057.28,9.597e-05,2]
[353003182,1739485406887,723.1949,8.973e-05,2]
[353003183,1739485479605,1800.0,0.0001,2]
[353003184,1739485508607,247237.08309734,0.0001,2]
[353003185,1739485508647,58450.47825632,0.0001,2]
[353003187,1739485636701,1300.0,0.0002084,99]
[353003206,1739485831902,-6194.95917003,0.00010085,2]
[353003207,1739485831912,-273.75,0.00010137,2]
[353003208,1739485831921,-900.0,0.00010268,2]
[353003209,1739485831931,-800.0,0.00010268,2]
[353003210,1739485831940,-150.0,0.00010679,2]
[353003211,1739485831950,-23900.0,0.00010714,2]
[353003212,1739485831959,-2000.0,0.00010768,2]
[353003213,1739485831969,-1113.35,0.00010818,2]
[353003214,1739485831980,-150.0,0.00010886,2]
[353003215,1739485831989,-150.0,0.00011022,2]
[353003216,1739485832001,-150.0,0.00011022,2]
[353003217,1739485832012,-150.0,0.00011022,2]
[353003218,1739485832021,-150.0,0.00011022,2]
[353003219,1739485832031,-150.0,0.00011075,2]
[353003220,1739485832040,-150.0,0.00011128,2]
[353003221,1739485832050,-150.0,0.00011144,2]
[353003225,1739485832360,-200.0,0.00011151,2]
[353003226,1739485832371,-150.0,0.00011182,2]
[353003228,1739485832381,-150.0,0.00011226,2]
[353003229,1739485832390,-150.0,0.00011235,2]
[353003230,1739485832400,-594.23,0.00011241,2]
[353003231,1739485832410,-775.17,0.00011241,2]
[353003232,1739485832419,-1368.22,0.00011264,2]
[353003233,1739485832429,-150.0,0.00011267,2]
[353003234,1739485832439,-1000.0,0.00011282,2]
[353003235,1739485832449,-1500.0,0.00011282,2]
[353003236,1739485832459,-150.0,0.00011288,2]
[353003237,1739485832469,-299.0,0.0001132,2]
[353003238,1739485832478,-150.0,0.00011341,2]
[353003240,1739485832488,-500.0,0.00011364,2]
[353003241,1739485832498,-150.0,0.00011387,2]
[353003244,1739485832507,-250.0,0.00011387,2]
[353003246,1739485832517,-150.0,0.00011389,2]
[353003249,1739485832526,-150.0,0.00011395,2]
[353003251,1739485832535,-150.0,0.0001143,2]
[353003253,1739485832545,-150.0,0.00011448,2]
[353003255,1739485832554,-280.36,0.00011478,2]
[353003257,1739485832563,-150.0,0.00011501,2]
[353003259,1739485832573,-150.0,0.00011512,2]
[353003261,1739485832582,-299.0,0.0001152,2]
[353003263,1739485832591,-2004.7,0.00011549,2]
[353003266,1739485832601,-150.0,0.00011554,2]
[353003269,1739485832610,-150.0,0.00011596,2]
[353003271,1739485832619,-150.0,0.00011608,2]
[353003273,1739485832629,-162.0,0.00011614,2]
[353003275,1739485832638,-150.0,0.00011634,2]
[353003277,1739485832647,-150.0,0.00011634,2]
[353003279,1739485832657,-150.0,0.00011634,2]
[353003282,1739485832668,-900.0,0.00011638,2]
[353003286,1739485832678,-800.0,0.00011638,2]
[353003289,1739485832687,-150.0,0.00011661,2]
[353003292,1739485832696,-150.0,0.00011714,2]
[353003295,1739485832705,-299.0,0.0001173,2]
[353003297,1739485832715,-150.0,0.00011757,2]
[353003300,1739485832725,-150.0,0.00011767,2]
[353003304,1739485832734,-500.0,0.00011781,2]
[353003305,1739485832743,-150.0,0.00011808,2]
[353003309,1739485832753,-150.0,0.00011821,2]
[353003311,1739485832763,-150.0,0.00011838,2]
[353003314,1739485832773,-431.95362761,0.00011842,2]
[353003316,1739485832783,-1057.28,0.00011861,2]
[353003319,1739485832792,-150.0,0.00011874,2]
[353003321,1739485832801,-150.0,0.00011879,2]
[353003323,1739485832811,-150.0,0.000119,2]
[353003325,1739485832820,-150.0,0.000119,2]
[353003327,1739485832830,-150.0,0.00011927,2]
[353003329,1739485832840,-299.0,0.0001193,2]
[353003330,1739485832849,-150.0,0.0001198,2]
[353003333,1739485832858,-150.0,0.00012002,2]
[353003334,1739485832868,-150.0,0.00012034,2]
[353003336,1739485832877,-150.0,0.00012042,2]
[353003338,1739485832887,-150.0,0.00012087,2]
[353003340,1739485832896,-576.81,0.00012087,2]
[353003342,1739485832905,-4316.95,0.00012087,2]
[353003344,1739485832915,-150.99,0.00012087,2]
[353003346,1739485832924,-1317.36,0.00012087,2]
[353003348,1739485832933,-31597.28,0.00012087,2]
[353003350,1739485832942,-150.0,0.00012124,2]
[353003352,1739485832951,-299.0,0.0001213,2]
[353003354,1739485832960,-2585.76172,0.0001214,2]
[353003356,1739485832970,-150.0,0.0001214,2]
[353003358,1739485832980,-197.58354588,0.00012164,2]
[353003359,1739485832990,-20120.09477772,0.00012164,2]
[353003361,1739485833001,-488.35639084,0.00012164,2]
[353003363,1739485833012,-11547.99730999,0.00012164,2]
[353003365,1739485833022,-364.10598044,0.00012164,2]
[353003368,1739485833032,-41601.52236025,0.00012164,2]
[353003369,1739485833043,-325.91600817,0.00012164,2]
[353003371,1739485833053,-150.0,0.00012193,2]
[353003374,1739485833062,-2289.933,0.000122,2]
[353003375,1739485833072,-176.151,0.000122,2]
[353003377,1739485833082,-150.0,0.00012247,2]
[353003379,1739485833092,-150.0,0.00012247,2]
[353003382,1739485833102,-150.0,0.00012247,2]
[353003383,1739485833112,-150.0,0.00012247,2]
[353003385,1739485833122,-177.67238224,0.00012263,2]
[353003387,1739485833133,-500.0,0.00012263,2]
[353003389,1739485833142,-500.0,0.00012263,2]
[353003391,1739485833152,-500.0,0.00012263,2]
[353003393,1739485833162,-500.0,0.00012263,2]
[353003396,1739485833172,-500.0,0.00012263,2]
[353003398,1739485833182,-500.0,0.00012263,2]
[353003400,1739485833195,-500.0,0.00012263,2]
[353003402,1739485833204,-500.0,0.00012263,2]
[353003404,1739485833214,-500.0,0.00012263,2]
[353003406,1739485833226,-500.0,0.00012263,2]
[353003408,1739485833235,-500.0,0.00012263,2]
[353003410,1739485833244,-500.0,0.00012263,2]
[353003411,1739485833254,-500.0,0.00012263,2]
[353003413,1739485833264,-500.0,0.00012263,2]
[353003415,1739485833274,-342.58004248,0.00012263,2]
[353003418,1739485833285,-501.7552286,0.00012263,2]
[353003419,1739485833295,-3420.98,0.00012263,2]
[353003421,1739485833305,-300.0,0.00012263,2]
[353003423,1739485833315,-180.22099247,0.00012264,2]
[353003425,1739485833325,-619.12093476,0.00012264,2]
[353003427,1739485833336,-714121.93099668,0.00012264,3]
[353003430,1739485833346,-270.61866086,0.00012264,3]
[353003431,1739485833356,-4123.46617385,0.00012264,2]
[353003433,1739485833365,-370500.74157753,0.00012264,5]
[353003436,1739485833379,-73824.86284834,0.00012264,5]
[353003438,1739485833390,-503.82709526,0.00012264,5]
[353003444,1739485833439,-101611.57834892,0.00012264,5]
[353003451,1739485833496,-614.72573488,0.00012264,5]
[353003453,1739485833507,-534.159991,0.00012264,5]
[353003455,1739485833519,-1945.55950178,0.00012264,5]
[353003461,1739485833564,-413.21193929,0.00012264,5]
[353003464,1739485833589,-612104.30965197,0.00012264,5]
[353003467,1739485833601,-167347.61567007,0.00012264,5]
[353003469,1739485833612,-1269.26778325,0.00012264,5]
[353003473,1739485833642,-2063.52084559,0.00012264,5]
[353003475,1739485833654,-7960.91580602,0.00012264,5]
[353003476,1739485833666,-941.96454601,0.00012264,5]
[353003487,1739485837745,-388.765986,0.00012264,3]
[353003488,1739485837844,-4826.65,0.00012264,3]
[353003489,1739485837856,-44343.09539382,0.00012264,3]
[353003490,1739485837867,-8390.41828939,0.00012264,3]
[353003491,1739485837883,-592.14361496,0.00012264,3]
[353003492,1739485837894,-316.2698799,0.00012264,3]
[353003493,1739485837905,-2893.74210755,0.00012264,3]
[353003494,1739485837916,-1533.348258,0.00012264,3]
[353003495,1739485837927,-1509.34,0.00012264,3]
[353003496,1739485837938,-567.92682084,0.00012264,3]
[353003497,1739485837956,-341.24596483,0.00012264,3]
[353003498,1739485837967,-6057.25000013,0.00012264,3]
[353003499,1739485837982,-11913.58123909,0.00012264,3]
[353003500,1739485837993,-860.27959036,0.00012264,3]
[353003501,1739485838011,-1845.8539949,0.00012264,3]
[353003502,1739485838022,-941.57868834,0.00012264,3]
[353003503,1739485838033,-579.02565841,0.00012264,3]
[353003506,1739485838050,-95440.99433652,0.00012264,3]
[353003508,1739485838061,-48864.93224471,0.00012264,3]
[353003510,1739485838072,-50200.0,0.00012264,3]
[353003512,1739485838087,-489.04999834,0.00012264,3]
[353003513,1739485838099,-724.000035,0.00012264,3]
[353003514,1739485838110,-692.74999987,0.00012264,3]
[353003515,1739485838122,-38835.89038802,0.00012264,3]
[353003516,1739485838139,-8768.97521127,0.00012264,3]
[353003688,1739485839881,-382204.82329643,0.00012264,3]
[353003690,1739485839891,-92422.76263451,0.00012264,5]
[353003692,1739485839903,-591.55481101,0.00012264,5]
[353003707,1739485840033,-453.8784,0.00012264,5]
[353003710,1739485840047,-744.96847343,0.00012264,5]
[353003712,1739485840059,-9664.3,0.00012264,5]
[353003714,1739485840070,-2277.07000001,0.00012264,5]
[353003720,1739485840122,-27914.98966074,0.00012264,5]
[353003722,1739485840134,-4355.8626438,0.00012264,5]
[353003725,1739485840146,-2119.36000001,0.00012264,5]
[353003728,1739485840163,-2369.4376295,0.00012264,5]
[353003730,1739485840175,-1300.0,0.00012264,5]
[353003732,1739485840186,-911.91921657,0.00012264,5]
[353003737,1739485840224,-1020.57054958,0.00012264,5]
[353003747,1739485840306,-15533.46772755,0.00012264,5]
[353004023,1739485843008,-7898.999995,0.00012264,5]
[353004025,1739485843020,-429.95759686,0.00012264,5]
[353004028,1739485843032,-7723.1949,0.00012264,5]
[353004036,1739485843111,-259628.10029539,0.00012264,5]
[353004367,1739485847017,-12235832.55162525,0.00012264,5]